[Event "Vastgota Open 2022"]
[Site "Skara stadshotell, Jarnvagsgatan 5, Skara, Sweden"]
[Date "2022.10.29"]
[Round "4.2"]
[White "Eklund, Lars-Goran"]
[Black "Cramling, Pia"]
[Result "1/2-1/2"]
[TimeControl "30 minutes + 10 seconds per move from move one."]
[WhiteTitle "FM"]
[BlackTitle "GM"]
[WhiteFideId "1701010"]
[BlackFideId "1700030"]
[WhiteElo "2176"]
[BlackElo "2421"]

1. Nf3 {[%clk 00:30:18]} {[%emt 00:00:01]} c5 {[%clk 00:30:03]} {[%emt
00:00:18]} 2. c4 {[%clk 00:30:22]} {[%emt 00:00:06]} Nf6 {[%clk 00:30:09]}
{[%emt 00:00:05]} 3. Nc3 {[%clk 00:30:15]} {[%emt 00:00:17]} e6 {[%clk
00:30:05]} {[%emt 00:00:13]} 4. e4 {[%clk 00:25:42]} {[%emt 00:04:43]} Nc6
{[%clk 00:27:06]} {[%emt 00:03:09]} 5. a3 {[%clk 00:23:31]} {[%emt 00:02:22]}
Qb6 {[%clk 00:22:54]} {[%emt 00:04:21]} 6. Be2 {[%clk 00:17:50]} {[%emt
00:05:51]} Be7 {[%clk 00:22:34]} {[%emt 00:00:30]} 7. O-O {[%clk 00:15:48]}
{[%emt 00:02:12]} O-O {[%clk 00:22:26]} {[%emt 00:00:18]} 8. Rb1 {[%clk
00:14:12]} {[%emt 00:01:46]} a5 {[%clk 00:20:46]} {[%emt 00:01:50]} 9. d3
{[%clk 00:12:22]} {[%emt 00:02:01]} d6 {[%clk 00:20:45]} {[%emt 00:00:10]} 10.
h3 {[%clk 00:07:51]} {[%emt 00:04:42]} Rd8 {[%clk 00:19:23]} {[%emt 00:01:32]}
11. Be3 {[%clk 00:07:09]} {[%emt 00:00:52]} d5 {[%clk 00:18:42]} {[%emt
00:00:51]} 12. cxd5 {[%clk 00:06:41]} {[%emt 00:00:38]} exd5 {[%clk 00:18:49]}
{[%emt 00:00:02]} 13. e5 {[%clk 00:06:16]} {[%emt 00:00:35]} Ne8 {[%clk
00:18:55]} {[%emt 00:00:03]} 14. d4 {[%clk 00:05:27]} {[%emt 00:01:00]} Bf5
{[%clk 00:08:02]} {[%emt 00:11:03]} 15. dxc5 {[%emt 00:01:50]} Qa7 {[%clk
00:07:55]} {[%emt 00:00:14]} 16. Rc1 {[%clk 00:01:29]} {[%emt 00:02:32]} d4
{[%clk 00:06:59]} {[%emt 00:01:06]} 17. Nxd4 {[%clk 00:00:47]} {[%emt
00:00:53]} Nxd4 {[%clk 00:05:34]} {[%emt 00:01:35]} 18. Bxd4 {[%clk 00:00:43]}
{[%emt 00:00:13]} Bxc5 {[%clk 00:05:14]} {[%emt 00:00:29]} 19. Bxc5 {[%clk
00:00:21]} {[%emt 00:00:33]} Qxc5 {[%clk 00:05:13]} {[%emt 00:00:11]} 20. Qb3
{[%clk 00:00:28]} {[%emt 00:00:03]} Qxe5 {[%clk 00:05:07]} {[%emt 00:00:16]} 21.
Bf3 {[%clk 00:00:37]} {[%emt 00:00:02]} Nf6 {[%clk 00:04:13]} {[%emt 00:01:03]}
22. Rfd1 {[%clk 00:00:26]} {[%emt 00:00:21]} Rxd1+ {[%clk 00:03:58]} {[%emt
00:00:25]} 23. Rxd1 {[%clk 00:00:35]} Rb8 {[%clk 00:03:58]} {[%emt 00:00:09]}
24. Qb5 {[%clk 00:00:38]} {[%emt 00:00:08]} Qxb5 {[%clk 00:03:48]} {[%emt
00:00:20]} 25. Nxb5 {[%clk 00:00:48]} b6 {[%clk 00:03:43]} {[%emt 00:00:13]} 26.
Nd4 {[%clk 00:00:57]} {[%emt 00:00:02]} Bd7 {[%clk 00:03:42]} {[%emt 00:00:11]}
27. Rc1 {[%clk 00:00:58]} {[%emt 00:00:09]} Rc8 {[%clk 00:03:17]} {[%emt
00:00:34]} 28. Rxc8+ {[%clk 00:00:57]} {[%emt 00:00:12]} Bxc8 {[%clk 00:03:25]}
{[%emt 00:00:01]} 29. b4 {[%clk 00:01:01]} {[%emt 00:00:07]} 1/2-1/2

[Event "Vastgota Open 2022"]
[Site "Skara stadshotell, Jarnvagsgatan 5, Skara, Sweden"]
[Date "2022.10.29"]
[Round "4.3"]
[White "Kleimark, Anders"]
[Black "Golubka, Petro"]
[Result "0-1"]
[TimeControl "30 minutes + 10 seconds per move from move one."]
[BlackTitle "GM"]
[WhiteFideId "1709968"]
[BlackFideId "14114224"]
[WhiteElo "2048"]
[BlackElo "2335"]

1. d4 {[%clk 00:30:17]} {[%emt 00:00:02]} d5 {[%clk 00:28:14]} {[%emt
00:02:07]} 2. c4 {[%clk 00:30:17]} {[%emt 00:00:08]} dxc4 {[%clk 00:27:45]}
{[%emt 00:00:41]} 3. e3 {[%clk 00:30:17]} {[%emt 00:00:10]} e5 {[%clk
00:27:25]} {[%emt 00:00:30]} 4. Bxc4 {[%clk 00:30:13]} {[%emt 00:00:13]} Nc6
{[%clk 00:27:27]} {[%emt 00:00:08]} 5. Qb3 {[%clk 00:27:49]} {[%emt 00:02:35]}
Qd7 {[%clk 00:26:25]} {[%emt 00:01:12]} 6. dxe5 {[%clk 00:26:18]} {[%emt
00:01:40]} Nxe5 {[%clk 00:26:02]} {[%emt 00:00:33]} 7. Bb5 {[%clk 00:25:17]}
{[%emt 00:01:11]} c6 {[%clk 00:26:05]} {[%emt 00:00:07]} 8. Be2 {[%clk
00:25:22]} {[%emt 00:00:05]} Qe6 {[%clk 00:25:58]} {[%emt 00:00:17]} 9. Qxe6+
{[%clk 00:23:41]} {[%emt 00:01:50]} Bxe6 {[%clk 00:26:07]} {[%emt 00:00:02]} 10.
Nf3 {[%clk 00:22:53]} {[%emt 00:00:58]} Nxf3+ {[%clk 00:26:09]} {[%emt
00:00:09]} 11. Bxf3 {[%clk 00:23:00]} {[%emt 00:00:03]} O-O-O {[%clk 00:26:14]}
{[%emt 00:00:06]} 12. O-O {[%clk 00:22:16]} {[%emt 00:00:53]} Nf6 {[%clk
00:22:36]} {[%emt 00:03:49]} 13. e4 {[%clk 00:19:55]} {[%emt 00:02:31]} Bc5
{[%clk 00:15:27]} {[%emt 00:07:19]} 14. Nc3 {[%clk 00:18:21]} {[%emt 00:01:43]}
h6 {[%clk 00:14:17]} {[%emt 00:01:20]} 15. Bf4 {[%clk 00:17:30]} {[%emt
00:01:00]} g5 {[%clk 00:13:43]} {[%emt 00:00:47]} 16. Be5 {[%clk 00:17:30]}
{[%emt 00:00:07]} Bd4 {[%clk 00:13:44]} {[%emt 00:00:10]} 17. Bxd4 {[%clk
00:17:00]} {[%emt 00:00:41]} Rxd4 {[%clk 00:13:48]} {[%emt 00:00:06]} 18. h3
{[%clk 00:15:24]} {[%emt 00:01:45]} h5 {[%clk 00:13:32]} {[%emt 00:00:27]} 19.
e5 {[%clk 00:14:13]} {[%emt 00:01:21]} Nd7 {[%clk 00:13:21]} {[%emt 00:00:21]}
20. Rfe1 {[%clk 00:13:20]} {[%emt 00:01:03]} g4 {[%clk 00:13:12]} {[%emt
00:00:18]} 21. hxg4 {[%clk 00:13:24]} {[%emt 00:00:06]} hxg4 {[%clk 00:13:02]}
{[%emt 00:00:20]} 22. Bd1 {[%emt 00:03:41]} Rh5 {[%clk 00:10:39]} 23. Bb3
{[%clk 00:11:38]} {[%emt 00:00:57]} Rxe5 {[%clk 00:09:39]} {[%emt 00:01:11]} 24.
Bxe6 {[%clk 00:10:42]} {[%emt 00:01:08]} Rxe6 {[%clk 00:09:41]} {[%emt
00:00:06]} 25. Rxe6 {[%clk 00:10:29]} {[%emt 00:00:23]} fxe6 {[%clk 00:09:51]}
26. Re1 {[%clk 00:10:07]} {[%emt 00:00:32]} Nc5 {[%clk 00:08:25]} {[%emt
00:01:35]} 27. Re5 {[%clk 00:09:37]} {[%emt 00:00:40]} b6 {[%clk 00:07:10]}
{[%emt 00:01:25]} 28. a3 {[%clk 00:09:09]} {[%emt 00:00:38]} a5 {[%clk
00:06:41]} {[%emt 00:00:39]} 29. Ne2 {[%clk 00:08:07]} {[%emt 00:01:11]} Rd1+
{[%clk 00:05:10]} {[%emt 00:01:42]} 30. Kh2 {[%clk 00:08:15]} {[%emt 00:00:02]}
Rb1 {[%clk 00:04:56]} {[%emt 00:00:23]} 31. Nd4 {[%clk 00:07:32]} {[%emt
00:00:54]} Rxb2 {[%clk 00:04:36]} {[%emt 00:00:30]} 32. Nxe6 {[%clk 00:07:04]}
{[%emt 00:00:38]} Nd3 {[%clk 00:04:17]} {[%emt 00:00:29]} 33. Re3 {[%clk
00:06:16]} {[%emt 00:00:59]} Nxf2 {[%clk 00:04:11]} {[%emt 00:00:15]} 34. Kg3
{[%clk 00:06:00]} {[%emt 00:00:25]} a4 {[%clk 00:03:53]} {[%emt 00:00:30]} 35.
Re5 {[%clk 00:04:51]} {[%emt 00:01:18]} Nd3 {[%clk 00:03:39]} {[%emt 00:00:24]}
36. Rg5 {[%clk 00:04:53]} {[%emt 00:00:09]} Rb3 {[%clk 00:03:30]} {[%emt
00:00:19]} 37. Kxg4 {[%clk 00:04:47]} {[%emt 00:00:16]} Rxa3 {[%clk 00:03:33]}
{[%emt 00:00:08]} 38. Kf5 {[%clk 00:04:05]} {[%emt 00:00:52]} Ra1 {[%clk
00:03:09]} {[%emt 00:00:34]} 39. Kf6 {[%clk 00:04:02]} {[%emt 00:00:12]} Rf1+
{[%clk 00:02:53]} {[%emt 00:00:26]} 40. Ke7 {[%clk 00:04:09]} {[%emt 00:00:04]}
a3 {[%clk 00:02:45]} {[%emt 00:00:18]} 41. Nd4 {[%clk 00:01:07]} {[%emt
00:03:12]} a2 {[%clk 00:02:32]} {[%emt 00:00:23]} 42. Nb3 {[%clk 00:01:08]}
{[%emt 00:00:09]} Nc5 {[%clk 00:02:19]} {[%emt 00:00:23]} 0-1

[Event "Vastgota Open 2022"]
[Site "Skara stadshotell, Jarnvagsgatan 5, Skara, Sweden"]
[Date "2022.10.29"]
[Round "4.4"]
[White "Johnson, Daniel"]
[Black "Thyberg, Andre"]
[Result "0-1"]
[TimeControl "30 minutes + 10 seconds per move from move one."]
[WhiteFideId "1721283"]
[BlackFideId "1764764"]
[WhiteElo "2155"]
[BlackElo "1632"]

1. d4 {[%clk 00:25:43]} {[%emt 00:04:31]} Nf6 {[%clk 00:30:17]} {[%emt
00:00:08]} 2. c4 {[%clk 00:25:51]} {[%emt 00:00:02]} c5 {[%clk 00:30:22]}
{[%emt 00:00:05]} 3. d5 {[%clk 00:25:59]} {[%emt 00:00:02]} b5 {[%clk
00:30:28]} {[%emt 00:00:04]} 4. cxb5 {[%clk 00:26:07]} {[%emt 00:00:03]} a6
{[%clk 00:30:32]} {[%emt 00:00:06]} 5. e3 {[%clk 00:26:15]} {[%emt 00:00:01]}
g6 {[%clk 00:30:01]} {[%emt 00:00:41]} 6. Nc3 {[%clk 00:26:23]} {[%emt
00:00:03]} d6 {[%clk 00:30:04]} {[%emt 00:00:07]} 7. Nf3 {[%clk 00:26:24]}
{[%emt 00:00:08]} Bg7 {[%clk 00:30:08]} {[%emt 00:00:06]} 8. a4 {[%clk
00:26:25]} {[%emt 00:00:09]} O-O {[%clk 00:30:06]} {[%emt 00:00:13]} 9. e4
{[%clk 00:26:21]} {[%emt 00:00:14]} axb5 {[%clk 00:29:47]} {[%emt 00:00:30]} 10.
Bxb5 {[%clk 00:26:28]} {[%emt 00:00:02]} Ba6 {[%clk 00:29:36]} {[%emt
00:00:21]} 11. Be2 {[%clk 00:26:35]} {[%emt 00:00:02]} Qa5 {[%clk 00:29:18]}
{[%emt 00:00:27]} 12. O-O {[%clk 00:25:39]} {[%emt 00:01:07]} Bxe2 {[%clk
00:28:24]} {[%emt 00:01:04]} 13. Qxe2 {[%clk 00:25:43]} {[%emt 00:00:06]} Nbd7
{[%clk 00:27:18]} {[%emt 00:01:16]} 14. Ra3 {[%clk 00:19:04]} {[%emt 00:06:49]}
Qb4 {[%clk 00:25:29]} {[%emt 00:01:58]} 15. Nd2 {[%clk 00:18:05]} {[%emt
00:01:10]} Nb6 {[%clk 00:22:05]} {[%emt 00:03:33]} 16. a5 {[%clk 00:17:36]}
{[%emt 00:00:40]} Nbd7 {[%clk 00:20:36]} {[%emt 00:01:38]} 17. Ra4 {[%clk
00:14:10]} {[%emt 00:03:35]} Qb7 {[%clk 00:20:10]} {[%emt 00:00:36]} 18. a6
{[%clk 00:14:01]} {[%emt 00:00:20]} Qc8 {[%clk 00:19:15]} {[%emt 00:01:05]} 19.
a7 {[%clk 00:12:09]} {[%emt 00:02:01]} Ne8 {[%clk 00:18:03]} {[%emt 00:01:23]}
20. Nc4 {[%clk 00:10:08]} {[%emt 00:02:11]} Qb7 {[%clk 00:16:27]} {[%emt
00:01:46]} 21. Na5 {[%clk 00:08:28]} {[%emt 00:01:50]} Qxa7 {[%clk 00:16:07]}
{[%emt 00:00:30]} 22. Nc6 {[%clk 00:08:00]} {[%emt 00:00:37]} Qb7 {[%clk
00:16:09]} {[%emt 00:00:08]} 23. Nxe7+ {[%clk 00:08:01]} {[%emt 00:00:09]} Kh8
{[%clk 00:16:13]} {[%emt 00:00:06]} 24. Rxa8 {[%clk 00:08:08]} {[%emt
00:00:03]} Qxa8 {[%clk 00:16:14]} {[%emt 00:00:09]} 25. f4 {[%clk 00:06:27]}
{[%emt 00:01:51]} Nc7 {[%clk 00:13:06]} {[%emt 00:03:19]} 26. Nc6 {[%clk
00:05:15]} {[%emt 00:01:22]} Re8 {[%clk 00:12:07]} {[%emt 00:01:09]} 27. Qf3
{[%clk 00:05:02]} {[%emt 00:00:22]} Nb8 {[%clk 00:11:36]} {[%emt 00:00:42]} 28.
e5 {[%clk 00:03:29]} {[%emt 00:01:43]} Nxc6 {[%clk 00:09:09]} {[%emt 00:02:37]}
29. dxc6 {[%clk 00:03:36]} {[%emt 00:00:02]} dxe5 {[%clk 00:08:23]} {[%emt
00:00:57]} 30. fxe5 {[%clk 00:03:44]} {[%emt 00:00:02]} Bxe5 {[%clk 00:08:07]}
{[%emt 00:00:26]} 31. Qxf7 {[%clk 00:01:12]} {[%emt 00:02:42]} Qxc6 {[%clk
00:08:11]} {[%emt 00:00:06]} 32. Bh6 {[%clk 00:01:17]} {[%emt 00:00:05]} Qe6
{[%clk 00:05:59]} {[%emt 00:02:22]} 33. Qf3 {[%clk 00:01:16]} {[%emt 00:00:10]}
Bg7 {[%clk 00:05:38]} {[%emt 00:00:31]} 34. Bxg7+ {[%clk 00:00:53]} {[%emt
00:00:33]} Kxg7 {[%clk 00:05:46]} {[%emt 00:00:02]} 35. Kh1 {[%clk 00:00:57]}
{[%emt 00:00:07]} Qe7 {[%clk 00:05:07]} {[%emt 00:00:49]} 36. Qd1 {[%clk
00:00:38]} {[%emt 00:00:29]} Ne6 {[%clk 00:04:56]} {[%emt 00:00:21]} 37. Nd5
{[%clk 00:00:35]} {[%emt 00:00:12]} Qg5 {[%clk 00:04:23]} {[%emt 00:00:43]} 38.
Nf6 {[%clk 00:00:18]} {[%emt 00:00:27]} Re7 {[%clk 00:04:08]} {[%emt 00:00:24]}
39. Ne4 {[%clk 00:00:13]} {[%emt 00:00:16]} Qe5 {[%clk 00:04:03]} {[%emt
00:00:15]} 40. Nc3 {[%clk 00:00:13]} {[%emt 00:00:10]} Nd4 {[%clk 00:03:54]}
{[%emt 00:00:19]} 41. Qc1 {[%clk 00:00:11]} {[%emt 00:00:12]} Nf5 {[%clk
00:03:53]} {[%emt 00:00:11]} 42. Qg5 {[%clk 00:00:11]} {[%emt 00:00:10]} Qe3
{[%clk 00:03:39]} {[%emt 00:00:25]} 43. Qg4 {[%clk 00:00:11]} {[%emt 00:00:10]}
Qe1 {[%clk 00:03:21]} {[%emt 00:00:28]} 44. Qd1 {[%clk 00:00:14]} {[%emt
00:00:06]} Qe5 {[%clk 00:03:19]} {[%emt 00:00:13]} 45. Qd2 {[%clk 00:00:13]}
{[%emt 00:00:11]} Qd4 {[%clk 00:02:52]} {[%emt 00:00:37]} 46. Qxd4+ {[%clk
00:00:11]} {[%emt 00:00:12]} cxd4 {[%clk 00:03:01]} {[%emt 00:00:01]} 47. Nd5
{[%clk 00:00:12]} {[%emt 00:00:09]} Rd7 {[%clk 00:02:57]} {[%emt 00:00:14]} 48.
Nb6 {[%clk 00:00:16]} {[%emt 00:00:06]} Rb7 {[%clk 00:03:06]} 49. Nc4 {[%clk
00:00:13]} {[%emt 00:00:12]} Rb4 {[%clk 00:02:20]} {[%emt 00:00:57]} 50. Rc1
{[%clk 00:00:14]} {[%emt 00:00:09]} Ne3 {[%clk 00:02:00]} {[%emt 00:00:30]} 51.
Nxe3 {[%clk 00:00:16]} {[%emt 00:00:08]} dxe3 {[%clk 00:02:09]} 52. Rc2 {[%clk
00:00:26]} Kf6 {[%clk 00:02:05]} {[%emt 00:00:12]} 53. Kg1 {[%clk 00:00:24]}
{[%emt 00:00:12]} Kf5 {[%clk 00:02:04]} {[%emt 00:00:12]} 54. Kf1 {[%clk
00:00:27]} {[%emt 00:00:06]} Ke4 {[%clk 00:02:12]} {[%emt 00:00:02]} 55. Ke2
{[%clk 00:00:30]} {[%emt 00:00:07]} Kd4 {[%clk 00:02:13]} {[%emt 00:00:10]} 56.
h3 {[%clk 00:00:19]} {[%emt 00:00:20]} Rb7 {[%clk 00:02:15]} {[%emt 00:00:08]}
57. Ke1 {[%clk 00:00:14]} {[%emt 00:00:15]} Rb5 {[%clk 00:01:39]} {[%emt
00:00:46]} 58. Ke2 {[%clk 00:00:13]} {[%emt 00:00:11]} Rg5 {[%clk 00:01:33]}
{[%emt 00:00:16]} 59. g4 {[%clk 00:00:15]} {[%emt 00:00:08]} Rb5 {[%clk
00:01:42]} {[%emt 00:00:02]} 60. Ke1 {[%clk 00:00:13]} {[%emt 00:00:10]} h5
{[%clk 00:01:50]} {[%emt 00:00:03]} 61. Ke2 {[%clk 00:00:14]} {[%emt 00:00:09]}
hxg4 {[%clk 00:01:38]} {[%emt 00:00:23]} 62. hxg4 {[%clk 00:00:23]} Rb4 {[%clk
00:01:25]} {[%emt 00:00:23]} 63. Ke1 {[%clk 00:00:25]} {[%emt 00:00:07]} Rb8
{[%clk 00:01:34]} {[%emt 00:00:02]} 64. Rc6 {[%clk 00:00:16]} {[%emt 00:00:19]}
g5 {[%clk 00:00:54]} {[%emt 00:00:49]} 65. Rg6 {[%clk 00:00:11]} {[%emt
00:00:16]} Rb5 {[%clk 00:01:03]} 66. b4 {[%clk 00:00:12]} {[%emt 00:00:09]} Ke4
{[%clk 00:01:07]} {[%emt 00:00:07]} 67. Ke2 {[%clk 00:00:13]} {[%emt 00:00:09]}
Kf4 {[%clk 00:01:06]} {[%emt 00:00:11]} 68. Rf6+ {[%clk 00:00:13]} {[%emt
00:00:10]} Kxg4 {[%clk 00:01:12]} {[%emt 00:00:03]} 69. Kxe3 {[%clk 00:00:21]}
{[%emt 00:00:03]} Rxb4 {[%clk 00:01:16]} {[%emt 00:00:06]} 70. Rg6 {[%clk
00:00:17]} {[%emt 00:00:14]} Rf4 {[%clk 00:01:18]} {[%emt 00:00:07]} 71. Rg8
{[%clk 00:00:14]} {[%emt 00:00:13]} Rf7 {[%clk 00:01:26]} {[%emt 00:00:01]} 72.
Ke2 {[%clk 00:00:14]} {[%emt 00:00:11]} Kh4 {[%clk 00:01:31]} {[%emt 00:00:05]}
73. Rh8+ {[%clk 00:00:11]} {[%emt 00:00:12]} Kg3 {[%clk 00:01:40]} {[%emt
00:00:02]} 74. Rh1 {[%clk 00:00:12]} {[%emt 00:00:09]} Kg2 {[%clk 00:01:36]}
{[%emt 00:00:13]} 75. Rh5 {[%clk 00:00:13]} {[%emt 00:00:10]} g4 {[%clk
00:01:45]} 76. Ke3 {[%clk 00:00:12]} {[%emt 00:00:10]} g3 {[%clk 00:01:48]}
{[%emt 00:00:07]} 77. Ra5 {[%clk 00:00:12]} {[%emt 00:00:11]} Kh2 {[%clk
00:01:41]} {[%emt 00:00:16]} 78. Rh5+ {[%clk 00:00:14]} {[%emt 00:00:07]} Kg1
{[%clk 00:01:49]} {[%emt 00:00:03]} 79. Rg5 {[%clk 00:00:12]} {[%emt 00:00:12]}
g2 {[%clk 00:01:52]} {[%emt 00:00:06]} 80. Ra5 {[%clk 00:00:11]} {[%emt
00:00:11]} Rh7 {[%clk 00:01:26]} {[%emt 00:00:36]} 81. Ra1+ {[%clk 00:00:11]}
{[%emt 00:00:11]} Kh2 {[%clk 00:01:32]} {[%emt 00:00:03]} 82. Kf2 {[%clk
00:00:11]} {[%emt 00:00:10]} Rf7+ {[%clk 00:01:41]} {[%emt 00:00:01]} 0-1

[Event "Vastgota Open 2022"]
[Site "Skara stadshotell, Jarnvagsgatan 5, Skara, Sweden"]
[Date "2022.10.29"]
[Round "4.5"]
[White "Cederqvist, Niclas"]
[Black "Lind, Jan-Olov"]
[Result "1/2-1/2"]
[TimeControl "30 minutes + 10 seconds per move from move one."]
[WhiteFideId "1702076"]
[BlackFideId "1701193"]
[WhiteElo "1883"]
[BlackElo "2123"]

1. d4 {[%clk 00:30:17]} {[%emt 00:00:02]} Nf6 {[%clk 00:29:55]} {[%emt
00:00:25]} 2. Nf3 {[%clk 00:30:17]} {[%emt 00:00:09]} g6 {[%clk 00:30:00]}
{[%emt 00:00:06]} 3. b3 {[%clk 00:29:59]} {[%emt 00:00:28]} Bg7 {[%clk
00:30:00]} {[%emt 00:00:09]} 4. Bb2 {[%clk 00:30:04]} {[%emt 00:00:05]} O-O
{[%clk 00:29:58]} {[%emt 00:00:13]} 5. e3 {[%clk 00:30:09]} {[%emt 00:00:04]}
d6 {[%clk 00:29:51]} {[%emt 00:00:18]} 6. Be2 {[%clk 00:30:04]} {[%emt
00:00:15]} Nbd7 {[%clk 00:29:56]} {[%emt 00:00:05]} 7. O-O {[%clk 00:30:08]}
{[%emt 00:00:05]} e5 {[%clk 00:29:34]} {[%emt 00:00:33]} 8. dxe5 {[%clk
00:28:19]} {[%emt 00:02:00]} Ng4 {[%clk 00:29:37]} {[%emt 00:00:06]} 9. c4
{[%clk 00:27:59]} {[%emt 00:00:30]} Ndxe5 {[%clk 00:29:26]} {[%emt 00:00:21]}
10. Nc3 {[%clk 00:27:04]} {[%emt 00:01:05]} Nxf3+ {[%clk 00:25:58]} {[%emt
00:03:37]} 11. Bxf3 {[%clk 00:27:03]} {[%emt 00:00:12]} Qh4 {[%clk 00:24:26]}
{[%emt 00:01:42]} 12. Bxg4 {[%clk 00:23:01]} {[%emt 00:04:12]} Bxg4 {[%clk
00:24:33]} {[%emt 00:00:03]} 13. Qd2 {[%clk 00:21:53]} {[%emt 00:01:18]} Be6
{[%clk 00:17:05]} {[%emt 00:07:37]} 14. Nd5 {[%clk 00:20:37]} {[%emt 00:01:27]}
Bxb2 {[%clk 00:16:58]} {[%emt 00:00:17]} 15. Qxb2 {[%clk 00:20:44]} {[%emt
00:00:02]} Bxd5 {[%clk 00:16:20]} {[%emt 00:00:49]} 16. cxd5 {[%clk 00:20:52]}
{[%emt 00:00:02]} c5 {[%clk 00:15:41]} {[%emt 00:00:49]} 17. dxc6 {[%clk
00:20:44]} {[%emt 00:00:19]} 1/2-1/2

[Event "Vastgota Open 2022"]
[Site "Skara stadshotell, Jarnvagsgatan 5, Skara, Sweden"]
[Date "2022.10.29"]
[Round "4.6"]
[White "Bellon Lopez, Juan Manuel"]
[Black "Johansson, Stefan"]
[Result "0-1"]
[TimeControl "30 minutes + 10 seconds per move from move one."]
[WhiteTitle "GM"]
[WhiteFideId "2200031"]
[BlackFideId "1733745"]
[WhiteElo "2347"]
[BlackElo "1946"]

1. d4 {[%clk 00:30:19]} {[%emt 00:26:21]} e6 {[%clk 00:30:16]} {[%emt
00:00:05]} 2. Bf4 {[%clk 00:30:11]} {[%emt 00:00:17]} f5 {[%clk 00:30:17]}
{[%emt 00:00:09]} 3. e3 {[%clk 00:29:35]} {[%emt 00:00:46]} Nf6 {[%clk
00:30:18]} {[%emt 00:00:09]} 4. h3 {[%clk 00:29:35]} {[%emt 00:00:10]} b6
{[%clk 00:29:40]} {[%emt 00:00:49]} 5. Nf3 {[%clk 00:29:21]} {[%emt 00:00:24]}
Bb7 {[%clk 00:29:40]} {[%emt 00:00:10]} 6. c4 {[%clk 00:29:05]} {[%emt
00:00:26]} Bb4+ {[%clk 00:29:26]} {[%emt 00:00:23]} 7. Nbd2 {[%clk 00:28:06]}
{[%emt 00:01:12]} Ne4 {[%clk 00:28:35]} {[%emt 00:00:58]} 8. a3 {[%clk
00:28:02]} {[%emt 00:00:14]} Bxd2+ {[%emt 00:01:29]} 9. Nxd2 {[%emt 00:00:03]}
Nxd2 {[%clk 00:26:05]} {[%emt 00:01:08]} 10. Qxd2 {[%clk 00:28:00]} {[%emt
00:00:12]} d6 {[%clk 00:26:13]} {[%emt 00:00:03]} 11. f3 {[%clk 00:27:29]}
{[%emt 00:00:40]} Qh4+ {[%clk 00:25:01]} {[%emt 00:01:22]} 12. g3 {[%clk
00:23:58]} {[%emt 00:03:41]} Qh5 {[%clk 00:24:14]} {[%emt 00:00:59]} 13. Rg1
{[%clk 00:19:53]} {[%emt 00:04:13]} Bxf3 {[%clk 00:18:04]} {[%emt 00:06:20]} 14.
g4 {[%clk 00:15:02]} {[%emt 00:05:01]} fxg4 {[%clk 00:17:18]} {[%emt 00:00:57]}
15. hxg4 {[%clk 00:14:26]} {[%emt 00:00:45]} Qg6 {[%clk 00:14:43]} {[%emt
00:02:45]} 16. Bd3 {[%clk 00:09:27]} {[%emt 00:05:09]} Be4 {[%clk 00:14:46]}
{[%emt 00:00:08]} 17. O-O-O {[%clk 00:08:59]} {[%emt 00:00:38]} Bxd3 {[%clk
00:13:29]} {[%emt 00:01:28]} 18. Qxd3 {[%clk 00:09:07]} {[%emt 00:00:02]} Qxd3
{[%clk 00:13:36]} {[%emt 00:00:03]} 19. Rxd3 {[%clk 00:09:16]} {[%emt
00:00:01]} Nd7 {[%clk 00:13:16]} {[%emt 00:00:29]} 20. g5 {[%clk 00:08:27]}
{[%emt 00:00:59]} O-O-O {[%clk 00:12:49]} {[%emt 00:00:38]} 21. Rd2 {[%clk
00:06:48]} {[%emt 00:01:48]} e5 {[%clk 00:11:35]} {[%emt 00:01:24]} 22. Bg3
{[%clk 00:06:55]} {[%emt 00:00:02]} Rdf8 {[%clk 00:11:24]} {[%emt 00:00:21]} 23.
Rh2 {[%clk 00:06:25]} {[%emt 00:00:40]} Rf3 {[%clk 00:10:14]} {[%emt 00:01:20]}
24. Kd2 {[%clk 00:06:20]} {[%emt 00:00:15]} h5 {[%clk 00:09:15]} {[%emt
00:01:09]} 25. Ke2 {[%clk 00:05:08]} {[%emt 00:01:22]} Rf5 {[%clk 00:09:23]}
{[%emt 00:00:03]} 26. Be1 {[%clk 00:04:57]} {[%emt 00:00:20]} g6 {[%clk
00:09:20]} {[%emt 00:00:13]} 27. Rf2 {[%clk 00:04:50]} {[%emt 00:00:17]} Rhf8
{[%clk 00:09:15]} {[%emt 00:00:16]} 28. Rxf5 {[%clk 00:04:54]} {[%emt
00:00:06]} Rxf5 {[%clk 00:08:53]} {[%emt 00:00:32]} 29. Bc3 {[%clk 00:04:52]}
{[%emt 00:00:12]} exd4 {[%clk 00:07:49]} {[%emt 00:01:14]} 30. exd4 {[%clk
00:04:51]} {[%emt 00:00:10]} Nf8 {[%clk 00:07:17]} {[%emt 00:00:42]} 31. Bd2
{[%clk 00:02:52]} {[%emt 00:02:08]} Ne6 {[%clk 00:07:00]} {[%emt 00:00:28]} 32.
Be3 {[%clk 00:02:55]} {[%emt 00:00:05]} Kd7 {[%clk 00:06:17]} {[%emt 00:00:56]}
33. b4 {[%clk 00:03:03]} {[%emt 00:00:02]} a5 {[%clk 00:06:10]} {[%emt
00:00:16]} 34. b5 {[%clk 00:03:08]} {[%emt 00:00:05]} d5 {[%clk 00:05:27]}
{[%emt 00:00:54]} 35. c5 {[%clk 00:02:41]} {[%emt 00:00:37]} bxc5 {[%clk
00:05:28]} {[%emt 00:00:09]} 36. dxc5 {[%clk 00:02:50]} d4 {[%clk 00:05:37]}
{[%emt 00:00:02]} 37. Rd1 {[%clk 00:02:20]} {[%emt 00:00:40]} Ke7 {[%clk
00:05:18]} {[%emt 00:00:29]} 38. Bxd4 {[%clk 00:01:41]} {[%emt 00:00:49]} Nxd4+
{[%clk 00:05:23]} {[%emt 00:00:04]} 39. Rxd4 {[%clk 00:01:51]} Rxc5 {[%clk
00:05:31]} {[%emt 00:00:02]} 40. a4 {[%clk 00:01:55]} {[%emt 00:00:05]} Rxg5
{[%clk 00:05:39]} {[%emt 00:00:02]} 41. Rc4 {[%clk 00:02:03]} {[%emt 00:00:02]}
Kd7 {[%clk 00:05:49]} {[%emt 00:00:01]} 42. Kf3 {[%clk 00:01:33]} {[%emt
00:00:41]} Rg4 {[%clk 00:05:50]} {[%emt 00:00:07]} 43. Rc6 {[%clk 00:01:27]}
{[%emt 00:00:16]} Rxa4 {[%clk 00:05:48]} {[%emt 00:00:12]} 44. Rxg6 {[%clk
00:01:35]} {[%emt 00:00:02]} Rb4 {[%clk 00:05:56]} {[%emt 00:00:03]} 45. Rg5
{[%clk 00:01:35]} {[%emt 00:00:10]} h4 {[%clk 00:06:04]} {[%emt 00:00:01]} 46.
Rc5 {[%clk 00:01:17]} {[%emt 00:00:28]} a4 {[%clk 00:05:54]} {[%emt 00:00:20]}
47. Kg2 {[%clk 00:00:53]} {[%emt 00:00:35]} a3 {[%clk 00:06:02]} {[%emt
00:00:02]} 48. Rc3 {[%clk 00:01:01]} Ra4 {[%clk 00:06:09]} {[%emt 00:00:03]} 49.
Rc1 {[%emt 00:00:01]} a2 50. Ra1 Kd6 {[%clk 00:06:26]} {[%emt 00:00:02]} 0-1